fUSD/lending_fUSD_20240125
["ID","MTS","AMOUNT","RATE_DAILY","PERIOD"]
[312688121,1706145141510,-1500.0,0.00052607,7]
[312688122,1706145141520,-452.49609033,0.00052609,60]
[312688123,1706145141529,-150.0,0.0005261,7]
[312688124,1706145141539,-150.0,0.00052616,7]
[312688125,1706145141550,-176.58520058,0.00052616,60]
[312688126,1706145141561,-300.0,0.00052617,7]
[312688127,1706145141571,-150.0,0.00052635,7]
[312688128,1706145141580,-150.0,0.00052643,7]
[312688129,1706145141590,-150.0,0.00052651,7]
[312688130,1706145141600,-150.0,0.0005266,7]
[312688131,1706145141609,-150.0,0.0005266,7]
[312688132,1706145141621,-150.0,0.00052665,7]
[312688133,1706145141631,-150.0,0.00052667,7]
[312688134,1706145141642,-150.0,0.00052669,7]
[312688135,1706145141651,-150.0,0.00052671,7]
[312688136,1706145141661,-452.49609033,0.00052672,60]
[312688137,1706145141670,-150.0,0.00052677,7]
[312688138,1706145141679,-150.0,0.00052683,7]
[312688139,1706145141689,-1489.53765312,0.00052683,14]
[312688140,1706145141699,-150.0,0.00052702,7]
[312688141,1706145141708,-1500.0,0.00052704,7]
[312688142,1706145141718,-150.37716717,0.00052705,60]
[312688143,1706145141727,-300.0,0.00052709,7]
[312688144,1706145141737,-150.0,0.00052709,7]
[312688145,1706145141747,-150.0,0.0005271,7]
[312688146,1706145141757,-150.0,0.00052713,7]
[312688147,1706145141767,-150.0,0.00052715,7]
[312688148,1706145141777,-584.90819405,0.0005272,60]
[312688149,1706145141787,-150.0,0.00052722,7]
[312688150,1706145141796,-150.0,0.00052723,7]
[312688151,1706145141806,-432.40353136,0.00052732,60]
[312688152,1706145141816,-150.0,0.00052732,7]
[312688153,1706145141825,-150.0,0.00052738,7]
[312688154,1706145141834,-300.0,0.00052739,120]
[312688155,1706145141844,-150.0,0.00052748,7]
[312688156,1706145141853,-150.0,0.0005275,7]
[312688157,1706145141864,-150.0,0.00052761,7]
[312688158,1706145141873,-150.0,0.0005277,7]
[312688159,1706145141883,-150.0,0.0005277,7]
[312688160,1706145141893,-150.0,0.0005277,7]
[312688161,1706145141902,-150.0,0.00052772,7]
[312688162,1706145141912,-150.0,0.00052773,7]
[312688163,1706145141922,-432.40353136,0.00052776,60]
[312688164,1706145141933,-307.40170157,0.0005278,7]
[312688165,1706145141944,-432.40353136,0.00052788,60]
[312688166,1706145141955,-894.0,0.0005279,2]
[312688167,1706145141965,-808.0,0.0005279,2]
[312688168,1706145141975,-14450.81,0.000528,30]
[312688169,1706145141984,-1000.0,0.000528,7]
[312688170,1706145141994,-176.55973396,0.000528,60]
[312688171,1706145142003,-150.0,0.00052803,7]
[312688172,1706145142013,-150.0,0.00052803,7]
[312688173,1706145142023,-150.0,0.00052807,7]
[312688174,1706145142033,-167.05741097,0.00052811,60]
[312688175,1706145142043,-1500.0,0.00052816,7]
[312688176,1706145142055,-1500.0,0.00052824,7]
[312688177,1706145142065,-300.0,0.00052826,7]
[312688178,1706145142075,-452.49609033,0.00052836,60]
[312688179,1706145142085,-1500.0,0.00052838,7]
[312688180,1706145142095,-150.0,0.00052839,7]
[312688181,1706145142105,-49229.8379002,0.0005284,2]
[312688182,1706145142115,-150.0,0.00052842,7]
[312688183,1706145142125,-150.0,0.00052843,7]
[312688184,1706145142134,-1500.0,0.00052848,7]
[312688185,1706145142144,-150.0,0.00052853,7]
[312688186,1706145142154,-153.87365434,0.00052853,60]
[312688187,1706145142163,-150.0,0.00052854,7]
[312688188,1706145142173,-150.0,0.0005286,7]
[312688189,1706145142183,-300.0,0.00052861,7]
[312688190,1706145142193,-150.0,0.00052862,7]
[312688191,1706145142202,-1835.58,0.00052864,5]
[312688192,1706145142212,-57175.1414,0.00052864,2]
[312688193,1706145142222,-2597.5158151,0.00052864,2]
[312688194,1706145142232,-300.0,0.00052871,7]
[312688195,1706145142242,-516.58311,0.00052874,14]
[312688196,1706145142251,-516.58311,0.00052874,14]
[312688197,1706145142261,-156.43151779,0.00052874,60]
[312688198,1706145142272,-151.0,0.00052876,2]
[312688199,1706145142283,-186.997498,0.00052876,14]
[312688200,1706145142292,-186.997498,0.00052876,14]
[312688201,1706145142302,-186.997498,0.00052876,14]
[312688202,1706145142320,-186.99749,0.00052876,14]
[312688203,1706145142335,-479.70925,0.00052876,14]
[312688204,1706145142346,-479.70925,0.00052876,14]
[312688205,1706145142356,-479.70925,0.00052876,14]
[312688206,1706145142367,-479.709254,0.00052876,14]
[312688207,1706145142378,-151.0,0.00052876,14]
[312688208,1706145142388,-151.0,0.00052876,14]
[312688209,1706145142399,-151.0,0.00052876,14]
[312688210,1706145142412,-293.259654,0.00052876,14]
[312688211,1706145142422,-500.0,0.00052876,31]
[312688212,1706145142433,-621.53716407,0.00052876,31]
[312688213,1706145142443,-571.81,0.00052876,31]
[312688214,1706145142453,-500.0,0.00052876,31]
[312688215,1706145142464,-569.3,0.00052876,31]
[312688216,1706145142475,-500.0,0.00052876,31]
[312688217,1706145142485,-500.0,0.00052876,31]
[312688218,1706145142495,-500.0,0.00052876,31]
[312688219,1706145142506,-500.0,0.00052876,31]
[312688220,1706145142516,-607.8,0.00052876,31]
[312688221,1706145142527,-500.0,0.00052876,31]
[312688222,1706145142538,-500.0,0.00052876,31]
[312688223,1706145142551,-500.0,0.00052876,31]
[312688224,1706145142564,-510.64,0.00052876,31]
[312688225,1706145142575,-500.0,0.00052876,31]
[312688226,1706145142586,-500.0,0.00052876,31]
[312688227,1706145142597,-500.0,0.00052876,31]
[312688228,1706145142607,-563.82,0.00052876,31]
[312688229,1706145142619,-500.0,0.00052876,31]
[312688230,1706145142630,-510.96,0.00052876,31]
[312688231,1706145142883,-500.0,0.00052876,31]
[312688232,1706145142893,-545.8,0.00052876,31]
[312688233,1706145142903,-500.0,0.00052876,31]
[312688234,1706145142912,-547.01,0.00052876,31]
[312688235,1706145142921,-500.0,0.00052876,31]
[312688236,1706145142931,-500.0,0.00052876,31]
[312688237,1706145142941,-500.0,0.00052876,31]
[312688238,1706145142950,-500.0,0.00052876,31]
[312688239,1706145142959,-500.0,0.00052876,31]
[312688240,1706145142969,-665.93,0.00052876,31]
[312688241,1706145142979,-500.0,0.00052876,31]
[312688242,1706145142988,-500.0,0.00052876,31]
[312688243,1706145142997,-1000.0,0.00052876,7]
[312688244,1706145143006,-500.0,0.00052876,31]
[312688245,1706145143015,-500.0,0.00052876,31]
[312688246,1706145143025,-500.0,0.00052876,31]
[312688247,1706145143034,-500.0,0.00052876,31]
[312688248,1706145143043,-4118.15,0.00052876,15]
[312688249,1706145143052,-500.0,0.00052876,31]
[312688250,1706145143061,-523.13,0.00052876,31]
[312688251,1706145143071,-937.73,0.00052876,2]
[312688252,1706145143081,-1968.51,0.00052876,31]
[312688253,1706145143090,-500.0,0.00052876,31]
[312688254,1706145143100,-539.3,0.00052876,31]
[312688255,1706145143109,-500.0,0.00052876,31]
[312688256,1706145143119,-500.0,0.00052876,31]
[312688257,1706145143129,-4141.1,0.00052876,31]
[312688258,1706145143138,-500.0,0.00052876,31]
[312688259,1706145143147,-500.0,0.00052876,31]
[312688260,1706145143157,-500.0,0.00052876,31]
[312688261,1706145143166,-266.07985987,0.00052876,31]
[312688262,1706145143176,-500.0,0.00052876,31]
[312688263,1706145143186,-500.0,0.00052876,31]
[312688264,1706145143196,-500.0,0.00052876,31]
[312688265,1706145143205,-500.0,0.00052876,31]
[312688266,1706145143216,-500.0,0.00052876,2]
[312688267,1706145143225,-500.0,0.00052876,31]
[312688268,1706145143235,-792.61,0.00052876,31]
[312688269,1706145143245,-500.0,0.00052876,31]
[312688270,1706145143254,-500.0,0.00052876,31]
[312688271,1706145143263,-500.0,0.00052876,31]
[312688272,1706145143273,-211.53008539,0.00052876,31]
[312688273,1706145143282,-702.69,0.00052876,31]
[312688274,1706145143292,-500.0,0.00052876,31]
[312688275,1706145143302,-500.0,0.00052876,31]
[312688276,1706145143312,-500.0,0.00052876,31]
[312688277,1706145143322,-315.50826291,0.00052876,31]
[312688278,1706145143332,-668.66,0.00052876,31]
[312688279,1706145143342,-500.0,0.00052876,31]
[312688280,1706145143352,-619.19,0.00052876,31]
[312688281,1706145143361,-500.0,0.00052876,31]
[312688282,1706145143372,-953.39,0.00052876,31]
[312688283,1706145143382,-500.0,0.00052876,31]
[312688284,1706145143391,-500.0,0.00052876,31]
[312688285,1706145143401,-500.0,0.00052876,31]
[312688286,1706145143410,-500.0,0.00052876,31]
[312688287,1706145143419,-500.0,0.00052876,31]
[312688288,1706145143429,-524.2,0.00052876,31]
[312688289,1706145143438,-500.0,0.00052876,31]
[312688290,1706145143447,-546.25035159,0.00052876,31]
[312688291,1706145143457,-781.79,0.00052876,31]
[312688292,1706145143467,-500.0,0.00052876,31]
[312688293,1706145143477,-479.74,0.00052876,31]
[312688294,1706145143486,-718.1,0.00052876,31]
[312688295,1706145143495,-500.0,0.00052876,31]
[312688296,1706145143504,-558.82,0.00052876,31]
[312688297,1706145143514,-500.0,0.00052876,31]
[312688298,1706145143523,-500.0,0.00052876,31]
[312688299,1706145143533,-500.0,0.00052876,31]
[312688300,1706145143543,-500.0,0.00052876,31]
[312688301,1706145143555,-500.0,0.00052876,31]
[312688302,1706145143564,-500.0,0.00052876,31]
[312688303,1706145143574,-719.02,0.00052876,31]
[312688304,1706145143583,-500.0,0.00052876,31]
[312688305,1706145143593,-530.57,0.00052876,31]
[312688306,1706145143602,-590.77,0.00052876,31]
[312688307,1706145143611,-500.0,0.00052876,31]
[312688308,1706145143623,-500.0,0.00052876,31]
[312688309,1706145143633,-500.0,0.00052876,31]
[312688310,1706145143643,-1141.79,0.00052876,31]
[312688311,1706145143653,-626.76,0.00052876,31]
[312688312,1706145143662,-500.0,0.00052876,31]
[312688313,1706145143671,-500.0,0.00052876,31]
[312688314,1706145143680,-500.0,0.00052876,31]
[312688315,1706145143690,-500.0,0.00052876,31]
[312688316,1706145143699,-500.0,0.00052876,31]
[312688317,1706145143709,-500.0,0.00052876,31]
[312688318,1706145143720,-529.72,0.00052876,31]
[312688319,1706145143730,-500.0,0.00052876,31]
[312688320,1706145143741,-502.97,0.00052876,31]
[312688321,1706145143750,-992.14,0.00052876,120]
[312688322,1706145143759,-500.0,0.00052876,31]
[312688323,1706145143768,-500.0,0.00052876,31]
[312688324,1706145143778,-500.0,0.00052876,31]
[312688325,1706145143787,-500.0,0.00052876,31]
[312688326,1706145143797,-500.0,0.00052876,31]
[312688327,1706145143807,-500.0,0.00052876,31]
[312688328,1706145143817,-500.0,0.00052876,31]
[312688329,1706145143827,-697.72,0.00052876,2]
[312688330,1706145143838,-500.0,0.00052876,31]
[312688331,1706145143850,-796.46,0.00052876,31]
[312688332,1706145143861,-500.0,0.00052876,31]
[312688333,1706145143874,-500.0,0.00052876,31]
[312688334,1706145143884,-483.60914499,0.00052876,31]
[312688335,1706145143894,-502.99,0.00052876,31]
[312688336,1706145143903,-551.20100181,0.00052876,31]
[312688337,1706145143913,-1084.63,0.00052876,31]
[312688338,1706145143922,-500.0,0.00052876,31]
[312688339,1706145143932,-568.2524331,0.00052876,31]
[312688340,1706145143941,-500.0,0.00052876,31]
[312688341,1706145143950,-1233.91,0.00052876,7]
[312688342,1706145143960,-339.07897208,0.00052876,31]
[312688343,1706145143969,-500.0,0.00052876,31]
[312688344,1706145143979,-500.0,0.00052876,31]
[312688345,1706145143988,-500.0,0.00052876,31]
[312688346,1706145143998,-500.0,0.00052876,31]
[312688347,1706145144007,-500.0,0.00052876,14]
[312688348,1706145144017,-500.0,0.00052876,31]
[312688349,1706145144026,-500.0,0.00052876,31]
[312688350,1706145144035,-500.0,0.00052876,31]
[312688351,1706145144044,-500.0,0.00052876,31]
[312688352,1706145144054,-224.05776971,0.00052876,31]
[312688353,1706145144063,-500.0,0.00052876,31]
[312688354,1706145144072,-669.25,0.00052876,20]
[312688355,1706145144082,-500.0,0.00052876,31]
[312688356,1706145144092,-500.0,0.00052876,31]
[312688357,1706145144101,-500.0,0.00052876,31]
[312688358,1706145144111,-500.0,0.00052876,31]
[312688359,1706145144127,-500.0,0.00052876,31]
[312688360,1706145144136,-1309.13,0.00052876,7]
[312688361,1706145144146,-500.0,0.00052876,31]
[312688362,1706145144156,-500.0,0.00052876,31]
[312688363,1706145144165,-520.3,0.00052876,31]
[312688364,1706145144175,-500.0,0.00052876,31]
[312688365,1706145144186,-500.0,0.00052876,31]
[312688366,1706145144196,-983.18,0.00052876,31]
[312688367,1706145144206,-500.0,0.00052876,31]
[312688368,1706145144215,-544.91001914,0.00052876,31]
[312688369,1706145144224,-500.0,0.00052876,31]
[312688370,1706145144234,-523.88,0.00052876,31]
[312688371,1706145144243,-500.0,0.00052876,31]
[312688372,1706145144253,-500.0,0.00052876,31]
[312688373,1706145144262,-1157.14,0.00052876,31]
[312688374,1706145144272,-500.0,0.00052876,31]
[312688375,1706145144282,-500.0,0.00052876,31]
[312688376,1706145144292,-500.0,0.00052876,31]
[312688377,1706145144301,-500.0,0.00052876,31]
[312688378,1706145144310,-500.0,0.00052876,31]
[312688379,1706145144320,-594.98,0.00052876,31]
[312688380,1706145144329,-500.0,0.00052876,31]
[312688381,1706145144339,-521.17610183,0.00052876,31]
[312688382,1706145144348,-500.0,0.00052876,31]
[312688383,1706145144357,-500.0,0.00052876,31]
[312688384,1706145144369,-500.0,0.00052876,31]
[312688385,1706145144379,-621.48,0.00052876,31]
[312688386,1706145144388,-659.17,0.00052876,31]
[312688387,1706145144397,-701.09,0.00052876,31]
[312688388,1706145144407,-1697.01,0.00052876,31]
[312688389,1706145144417,-500.0,0.00052876,31]
[312688390,1706145144426,-500.0,0.00052876,31]
[312688391,1706145144435,-500.0,0.00052876,31]
[312688392,1706145144445,-500.0,0.00052876,31]
[312688393,1706145144454,-500.0,0.00052876,31]
[312688394,1706145144463,-523.57,0.00052876,31]
[312688395,1706145144472,-500.0,0.00052876,31]
[312688396,1706145144481,-728.06,0.00052876,31]
[312688397,1706145144491,-493.93428459,0.00052876,31]
[312688398,1706145144501,-511.53,0.00052876,31]
[312688399,1706145144510,-500.0,0.00052876,31]
[312688400,1706145144519,-500.0,0.00052876,31]
[312688401,1706145144529,-500.0,0.00052876,31]
[312688402,1706145144538,-665.87,0.00052876,31]
[312688403,1706145144547,-698.55,0.00052876,31]
[312688404,1706145144560,-535.75,0.00052876,31]
[312688405,1706145144569,-500.0,0.00052876,31]
[312688406,1706145144578,-973.03,0.00052876,2]
[312688407,1706145144588,-500.0,0.00052876,31]
[312688408,1706145144597,-3653.94,0.00052876,31]
[312688409,1706145144607,-944.79,0.00052876,31]
[312688410,1706145144618,-500.0,0.00052876,31]
[312688411,1706145144628,-500.0,0.00052876,31]
[312688412,1706145144638,-455.42439608,0.00052876,31]
[312688413,1706145144647,-517.29,0.00052876,31]
[312688414,1706145144657,-766.32,0.00052876,31]
[312688415,1706145144667,-578.45,0.00052876,31]
[312688416,1706145144676,-500.0,0.00052876,31]
[312688417,1706145144685,-500.0,0.00052876,31]
[312688418,1706145144695,-571.27,0.00052876,31]
[312688419,1706145144705,-500.0,0.00052876,31]
[312688420,1706145144715,-8715.7,0.00052876,31]
[312688421,1706145144725,-524.02774146,0.00052876,31]
[312688422,1706145144735,-1119.03,0.00052876,2]
[312688423,1706145144744,-203.82,0.00052876,31]
[312688424,1706145144753,-500.0,0.00052876,31]
[312688425,1706145144762,-563.62,0.00052876,31]
[312688426,1706145144772,-551.67,0.00052876,31]
[312688427,1706145144782,-1258.54,0.00052876,31]
[312688428,1706145144792,-797.85,0.00052876,31]
[312688429,1706145144802,-500.0,0.00052876,31]
[312688430,1706145144811,-500.0,0.00052876,31]
[312688431,1706145144820,-500.0,0.00052876,31]
[312688432,1706145144830,-500.0,0.00052876,31]
[312688433,1706145144839,-524.49,0.00052876,31]
[312688434,1706145144849,-1041.4,0.00052876,31]
[312688435,1706145144858,-500.0,0.00052876,31]
[312688436,1706145144868,-572.67,0.00052876,31]
[312688437,1706145144877,-1295.76,0.00052876,31]
[312688438,1706145144887,-531.79,0.00052876,31]
[312688439,1706145144896,-717.84,0.00052876,31]
[312688440,1706145144906,-866.53,0.00052876,31]
[312688441,1706145144915,-500.0,0.00052876,31]
[312688442,1706145144924,-543.89,0.00052876,31]
[312688443,1706145144933,-1360.18,0.00052876,31]
[312688444,1706145144943,-1845.53,0.00052876,31]
[312688445,1706145144952,-738.6,0.00052876,31]
[312688446,1706145144961,-500.0,0.00052876,31]
[312688447,1706145144970,-645.65,0.00052876,31]
[312688448,1706145144979,-541.32,0.00052876,31]
[312688449,1706145144989,-500.0,0.00052876,31]
[312688450,1706145144999,-384.39420484,0.00052876,31]
[312688451,1706145145009,-500.0,0.00052876,31]
[312688452,1706145145019,-569.14,0.00052876,31]
[312688453,1706145145028,-500.0,0.00052876,31]
[312688454,1706145145037,-500.0,0.00052876,31]
[312688455,1706145145047,-500.0,0.00052876,31]
[312688456,1706145145056,-567.82,0.00052876,31]
[312688457,1706145145066,-959.04,0.00052876,31]
[312688458,1706145145075,-672.35,0.00052876,31]
[312688459,1706145145084,-500.0,0.00052876,31]
[312688460,1706145145093,-500.0,0.00052876,31]
[312688461,1706145145102,-500.0,0.00052876,31]
[312688462,1706145145112,-1206.46,0.00052876,31]
[312688463,1706145145122,-3857.57,0.00052876,5]
[312688464,1706145145131,-608.48,0.00052876,31]
[312688465,1706145145141,-500.95838779,0.00052876,31]
[312688466,1706145145151,-500.0,0.00052876,31]
[312688467,1706145145160,-2393.75,0.00052876,31]
[312688468,1706145145169,-1000.0,0.00052876,2]
[312688469,1706145145264,-681.13,0.00052876,31]
[312688470,1706145145274,-714.81,0.00052876,31]
[312688471,1706145145283,-683.16,0.00052876,31]
[312688472,1706145145292,-500.0,0.00052876,31]
[312688473,1706145145301,-500.0,0.00052876,31]
[312688474,1706145145311,-5066.61,0.00052876,31]
[312688475,1706145145320,-500.0,0.00052876,31]
[312688476,1706145145329,-966.39,0.00052876,31]
[312688477,1706145145338,-585.71,0.00052876,31]
[312688478,1706145145347,-2701.77,0.00052876,31]
[312688479,1706145145355,-535.75,0.00052876,31]
[312688480,1706145145364,-500.0,0.00052876,31]
[312688481,1706145145375,-2453.54,0.00052876,31]
[312688482,1706145145383,-2066.55,0.00052876,31]
[312688483,1706145145392,-687.75,0.00052876,31]
[312688484,1706145145401,-580.27,0.00052876,31]
[312688485,1706145145410,-532.81,0.00052876,31]
[312688486,1706145145418,-1006.46,0.00052876,31]
[312688487,1706145145427,-5784.02,0.00052876,31]
[312688488,1706145145436,-500.0,0.00052876,31]
[312688489,1706145145445,-500.0,0.00052876,31]
[312688490,1706145145454,-500.0,0.00052876,31]
[312688491,1706145145463,-537.04,0.00052876,31]
[312688492,1706145145472,-835.92,0.00052876,31]
[312688493,1706145145482,-584.5,0.00052876,31]
[312688494,1706145145493,-742.38,0.00052876,31]
[312688495,1706145145503,-660.52,0.00052876,31]
[312688496,1706145145513,-540.87,0.00052876,31]
[312688497,1706145145524,-500.0,0.00052876,31]
[312688498,1706145145534,-1086.36,0.00052876,31]
[312688499,1706145145545,-650.74,0.00052876,31]
[312688500,1706145145556,-1735.79,0.00052876,31]
[312688501,1706145145565,-500.0,0.00052876,31]
[312688502,1706145145574,-506.10201446,0.00052876,31]
[312688503,1706145145583,-677.43,0.00052876,31]
[312688504,1706145145592,-700.44,0.00052876,31]
[312688505,1706145145602,-500.0,0.00052876,31]
[312688506,1706145145611,-1060.9,0.00052876,31]
[312688507,1706145145622,-500.0,0.00052876,31]
[312688508,1706145145631,-500.55,0.00052876,31]
[312688509,1706145145641,-542.21187708,0.00052876,31]
[312688510,1706145145651,-547.24,0.00052876,31]
[312688511,1706145145661,-2280.94,0.00052876,31]
[312688512,1706145145670,-552.79,0.00052876,31]
[312688513,1706145145679,-1320.68,0.00052876,31]
[312688514,1706145145689,-500.0,0.00052876,31]
[312688515,1706145145698,-581.01,0.00052876,31]
[312688516,1706145145706,-712.54,0.00052876,31]
[312688517,1706145145715,-1247.14,0.00052876,31]
[312688518,1706145145724,-500.0,0.00052876,31]
[312688519,1706145145734,-640.51423789,0.00052876,31]
[312688520,1706145145743,-500.0,0.00052876,31]
[312688521,1706145145752,-693.55,0.00052876,31]
[312688522,1706145145761,-608.94,0.00052876,31]
[312688523,1706145145770,-500.0,0.00052876,31]
[312688524,1706145145779,-887.42,0.00052876,31]
[312688525,1706145145788,-500.0,0.00052876,31]
[312688526,1706145145798,-633.04,0.00052876,31]
[312688527,1706145145807,-500.0,0.00052876,31]
[312688528,1706145145816,-706.67,0.00052876,31]
[312688529,1706145145825,-778.86,0.00052876,31]
[312688530,1706145145835,-4966.08,0.00052876,31]
[312688531,1706145145844,-639.06,0.00052876,31]
[312688532,1706145145853,-712.26,0.00052876,31]
[312688533,1706145145862,-1315.35,0.00052876,31]
[312688534,1706145145872,-740.74,0.00052876,31]
[312688535,1706145145881,-564.19,0.00052876,31]
[312688536,1706145145890,-1073.61,0.00052876,31]
[312688537,1706145145899,-500.0,0.00052876,31]
[312688538,1706145145908,-765.5,0.00052876,31]
[312688539,1706145145917,-645.15,0.00052876,31]
[312688540,1706145145926,-500.0,0.00052876,31]
[312688541,1706145145938,-539.53,0.00052876,31]
[312688542,1706145145948,-751.1,0.00052876,31]
[312688543,1706145145959,-500.0,0.00052876,31]
[312688544,1706145145968,-553.53,0.00052876,31]
[312688545,1706145145977,-500.0,0.00052876,31]
[312688546,1706145145985,-608.69,0.00052876,31]
[312688547,1706145145995,-649.59,0.00052876,31]
[312688548,1706145146005,-537.1,0.00052876,31]
[312688549,1706145146016,-3061.04,0.00052876,31]
[312688550,1706145146027,-875.62,0.00052876,31]
[312688551,1706145146037,-769.1,0.00052876,31]
[312688552,1706145146045,-1451.54,0.00052876,31]
[312688553,1706145146055,-366.37770431,0.00052876,31]
[312688554,1706145146063,-860.59,0.00052876,31]
[312688555,1706145146072,-500.0,0.00052876,31]
[312688556,1706145146081,-703.22,0.00052876,31]
[312688557,1706145146091,-737.72,0.00052876,31]
[312688558,1706145146102,-658.3,0.00052876,31]
[312688559,1706145146112,-992.0,0.00052876,31]
[312688560,1706145146122,-500.0,0.00052876,31]
[312688561,1706145146132,-500.0,0.00052876,31]
[312688562,1706145146142,-500.0,0.00052876,31]
[312688563,1706145146151,-500.0,0.00052876,31]
[312688564,1706145146161,-500.0,0.00052876,31]
[312688565,1706145146170,-655.7,0.00052876,31]
[312688566,1706145146179,-599.29,0.00052876,31]
[312688567,1706145146189,-764.66,0.00052876,31]
[312688568,1706145146199,-548.31,0.00052876,31]
[312688569,1706145146209,-3144.18,0.00052876,31]
[312688570,1706145146220,-673.27,0.00052876,31]
[312688571,1706145146230,-232.72343714,0.00052876,31]
[312688572,1706145146241,-765.11,0.00052876,31]
[312688573,1706145146251,-730.54,0.00052876,31]
[312688574,1706145146262,-515.5,0.00052876,31]
[312688575,1706145146271,-500.0,0.00052876,31]
[312688576,1706145146281,-618.61,0.00052876,31]
[312688577,1706145146290,-1295.4,0.00052876,31]
[312688578,1706145146299,-500.0,0.00052876,31]
[312688579,1706145146309,-792.67,0.00052876,31]
[312688580,1706145146318,-1247.69,0.00052876,31]
[312688581,1706145146327,-600.26,0.00052876,31]
[312688582,1706145146336,-501.79,0.00052876,31]
[312688583,1706145146345,-500.0,0.00052876,31]
[312688584,1706145146355,-678.69,0.00052876,31]
[312688585,1706145146364,-748.16,0.00052876,31]
[312688586,1706145146375,-3710.41,0.00052876,31]
[312688587,1706145146384,-689.9,0.00052876,31]
[312688588,1706145146394,-500.0,0.00052876,120]
[312688589,1706145146403,-1129.79,0.00052876,31]
[312688590,1706145146412,-500.0,0.00052876,31]
[312688591,1706145146422,-560.58,0.00052876,31]
[312688592,1706145146431,-2615.23,0.00052876,31]
[312688593,1706145146440,-1281.32,0.00052876,31]
[312688594,1706145146449,-536.66,0.00052876,31]
[312688595,1706145146459,-820.44,0.00052876,31]
[312688596,1706145146468,-500.0,0.00052876,31]
[312688597,1706145146477,-1013.31,0.00052876,31]
[312688598,1706145146486,-500.0,0.00052876,31]
[312688599,1706145146495,-605.74,0.00052876,31]
[312688600,1706145146505,-500.0,0.00052876,31]
[312688601,1706145146514,-571.87,0.00052876,31]
[312688602,1706145146523,-500.0,0.00052876,31]
[312688603,1706145146532,-500.0,0.00052876,31]
[312688604,1706145146542,-500.0,0.00052876,31]
[312688605,1706145146552,-537.66,0.00052876,31]
[312688606,1706145146566,-756.21,0.00052876,31]
[312688607,1706145146575,-594.93,0.00052876,2]
[312688608,1706145146586,-446.88709154,0.00052876,31]
[312688609,1706145146595,-724.18,0.00052876,31]
[312688610,1706145146604,-724.25,0.00052876,31]
[312688611,1706145146613,-2993.87,0.00052876,31]
[312688612,1706145146624,-618.86,0.00052876,31]
[312688613,1706145146635,-612.72,0.00052876,31]
[312688614,1706145146645,-500.0,0.00052876,31]
[312688615,1706145146654,-887.79,0.00052876,31]
[312688616,1706145146663,-514.92,0.00052876,31]
[312688617,1706145146672,-500.0,0.00052876,31]
[312688618,1706145146681,-500.0,0.00052876,31]
[312688619,1706145146693,-1822.59,0.00052876,2]
[312688620,1706145146704,-1226.02,0.00052876,31]